[Event "Early-Titled-Tuesday-Blitz-April-23-2024"]
[Site "Chess.com"]
[Date "2024.04.23"]
[Round "1"]
[White "InitiatingASC"]
[Black "goodluck06"]
[Result "0-1"]
[WhiteElo "2363"]
[BlackElo "2673"]
[TimeControl "180+1"]
[EndTime "8:07:54 PDT"]
[Termination "goodluck06 won by resignation"]

1. d4 {[%clk 0:03:00.2]} 1... d5 {[%clk 0:02:56.6]} 2. c4 {[%clk 0:03:00.3]}
2... c6 {[%clk 0:02:56.9]} 3. Nf3 {[%clk 0:02:59]} 3... Nf6 {[%clk 0:02:57]} 4.
g3 {[%clk 0:02:58.6]} 4... Bf5 {[%clk 0:02:54.7]} 5. Bg2 {[%clk 0:02:58.9]} 5...
e6 {[%clk 0:02:54.6]} 6. O-O {[%clk 0:02:58.7]} 6... h6 {[%clk 0:02:53.7]} 7. b3
{[%clk 0:02:53.1]} 7... Nbd7 {[%clk 0:02:53.2]} 8. Bb2 {[%clk 0:02:53]} 8... Be7
{[%clk 0:02:53.3]} 9. Nbd2 {[%clk 0:02:52.8]} 9... O-O {[%clk 0:02:53.6]} 10.
Ne5 {[%clk 0:02:53.2]} 10... a5 {[%clk 0:02:47.8]} 11. a3 {[%clk 0:02:52.1]}
11... Qb6 {[%clk 0:02:38.8]} 12. Nxd7 {[%clk 0:02:41.6]} 12... Nxd7 {[%clk
0:02:38.6]} 13. c5 {[%clk 0:02:42]} 13... Qc7 {[%clk 0:02:33.4]} 14. e4 {[%clk
0:02:42.2]} 14... dxe4 {[%clk 0:02:29.7]} 15. Bxe4 {[%clk 0:02:42]} 15... Bh3
{[%clk 0:02:25.8]} 16. Re1 {[%clk 0:02:38.2]} 16... Nf6 {[%clk 0:02:20.6]} 17.
Qc2 {[%clk 0:02:01.4]} 17... Nxe4 {[%clk 0:02:14.6]} 18. Qxe4 {[%clk 0:01:57.4]}
18... Bf5 {[%clk 0:02:11.8]} 19. Qf3 {[%clk 0:01:57.7]} 19... Rfd8 {[%clk
0:02:03.5]} 20. Nc4 {[%clk 0:01:57.4]} 20... Bf6 {[%clk 0:01:56.3]} 21. Rad1
{[%clk 0:01:55.8]} 21... a4 {[%clk 0:01:34.3]} 22. Nb6 {[%clk 0:01:41.4]} 22...
Bc2 {[%clk 0:01:34]} 23. Nxa8 {[%clk 0:01:38.9]} 23... Rxa8 {[%clk 0:01:33.3]}
24. Rd2 {[%clk 0:01:26.5]} 24... axb3 {[%clk 0:01:30.3]} 25. Qc3 {[%clk
0:01:16.3]} 25... Rd8 {[%clk 0:01:02.9]} 26. Qb4 {[%clk 0:01:14.9]} 26... h5
{[%clk 0:00:54.7]} 27. Bc3 {[%clk 0:01:07.4]} 27... h4 {[%clk 0:00:51.4]} 28.
Kg2 {[%clk 0:00:54.6]} 28... Qd7 {[%clk 0:00:46.1]} 29. Ree2 {[%clk 0:00:48.6]}
29... Qd5+ {[%clk 0:00:45.8]} 30. f3 {[%clk 0:00:44.8]} 30... h3+ {[%clk
0:00:41.7]} 31. Kf2 {[%clk 0:00:43.7]} 31... Bg5 {[%clk 0:00:32]} 32. Rxc2
{[%clk 0:00:43.2]} 32... bxc2 {[%clk 0:00:31.3]} 33. Rxc2 {[%clk 0:00:43.9]}
33... Qf5 {[%clk 0:00:30.5]} 34. Re2 {[%clk 0:00:35.6]} 34... Bf6 {[%clk
0:00:20.3]} 35. Qxb7 {[%clk 0:00:29.1]} 35... Bxd4+ {[%clk 0:00:18.5]} 36. Bxd4
{[%clk 0:00:28.6]} 36... Rxd4 {[%clk 0:00:18.6]} 37. Qa8+ {[%clk 0:00:26]} 37...
Kh7 {[%clk 0:00:18.5]} 38. Qxc6 {[%clk 0:00:26.7]} 38... Rc4 {[%clk 0:00:15.9]}
39. a4 {[%clk 0:00:24.9]} 39... Qb1 {[%clk 0:00:12.6]} 40. a5 {[%clk 0:00:20.7]}
40... Qh1 {[%clk 0:00:11.6]} 41. Ke3 {[%clk 0:00:21.3]} 41... Qg1+ {[%clk
0:00:11.6]} 42. Kd3 {[%clk 0:00:21.6]} 42... Qc1 {[%clk 0:00:11.6]} 43. Rd2
{[%clk 0:00:19]} 43... Rc3+ {[%clk 0:00:08.8]} 44. Ke2 {[%clk 0:00:18.3]} 44...
Qg1 {[%clk 0:00:07.7]} 45. Qe4+ {[%clk 0:00:18.3]} 45... f5 {[%clk 0:00:07.6]}
46. Qd4 {[%clk 0:00:14.1]} 46... Qxh2+ {[%clk 0:00:06.1]} 47. Kd1 {[%clk
0:00:14.6]} 47... Qh1+ {[%clk 0:00:06.2]} 48. Ke2 {[%clk 0:00:14.9]} 48... Qg2+
{[%clk 0:00:06.3]} 49. Kd1 {[%clk 0:00:14.6]} 49... Qxf3+ {[%clk 0:00:06.7]} 50.
Ke1 {[%clk 0:00:12.9]} 50... Re3+ {[%clk 0:00:07.2]} 51. Qxe3 {[%clk 0:00:09.3]}
51... Qxe3+ {[%clk 0:00:07.4]} 52. Kd1 {[%clk 0:00:10.2]} 52... Qxc5 {[%clk
0:00:06.5]} 53. Ra2 {[%clk 0:00:09.6]} 53... h2 {[%clk 0:00:05.8]} 54. Rxh2+
{[%clk 0:00:09]} 54... Kg6 {[%clk 0:00:06.4]} 55. Ra2 {[%clk 0:00:09.7]} 55...
Qd5+ {[%clk 0:00:06.7]} 0-1

[Event "Early-Titled-Tuesday-Blitz-April-23-2024"]
[Site "Chess.com"]
[Date "2024.04.23"]
[Round "1"]
[White "Incognito_Knight"]
[Black "Daaksboy"]
[Result "1-0"]
[WhiteElo "2733"]
[BlackElo "2404"]
[TimeControl "180+1"]
[EndTime "8:07:55 PDT"]
[Termination "Incognito_Knight won on time"]

1. e4 {[%clk 0:03:00.9]} 1... c5 {[%clk 0:02:59.3]} 2. d4 {[%clk 0:03:00.8]}
2... cxd4 {[%clk 0:02:58.7]} 3. Qxd4 {[%clk 0:03:01.7]} 3... Nc6 {[%clk
0:02:58]} 4. Qd3 {[%clk 0:03:02.2]} 4... Nf6 {[%clk 0:02:56.2]} 5. Nc3 {[%clk
0:03:02]} 5... g6 {[%clk 0:02:55.7]} 6. Nf3 {[%clk 0:03:02]} 6... d6 {[%clk
0:02:56.2]} 7. Be2 {[%clk 0:03:02.5]} 7... Bg7 {[%clk 0:02:56.8]} 8. O-O {[%clk
0:03:02.9]} 8... Nd7 {[%clk 0:02:55.1]} 9. Bg5 {[%clk 0:02:52.7]} 9... O-O
{[%clk 0:02:46.6]} 10. Qe3 {[%clk 0:02:40.8]} 10... Qb6 {[%clk 0:02:27.1]} 11.
Qc1 {[%clk 0:02:31.4]} 11... Nc5 {[%clk 0:02:11.8]} 12. Bh6 {[%clk 0:02:14]}
12... Bg4 {[%clk 0:02:03]} 13. Bxg7 {[%clk 0:02:12.5]} 13... Kxg7 {[%clk
0:02:02.2]} 14. Nd5 {[%clk 0:02:09.6]} 14... Qd8 {[%clk 0:01:55.3]} 15. Qe3
{[%clk 0:02:07.5]} 15... e6 {[%clk 0:01:36.5]} 16. Nc3 {[%clk 0:01:52.2]} 16...
Qf6 {[%clk 0:01:09]} 17. Rad1 {[%clk 0:01:49]} 17... Bxf3 {[%clk 0:01:04.2]} 18.
Bxf3 {[%clk 0:01:47.1]} 18... Rfd8 {[%clk 0:01:04.4]} 19. Be2 {[%clk 0:01:41.6]}
19... a6 {[%clk 0:00:57.3]} 20. f4 {[%clk 0:01:40.9]} 20... b5 {[%clk
0:00:39.9]} 21. e5 {[%clk 0:01:33.7]} 21... Qe7 {[%clk 0:00:40.1]} 22. exd6
{[%clk 0:01:28.8]} 22... Rxd6 {[%clk 0:00:29.3]} 23. Rxd6 {[%clk 0:01:16.4]}
23... Qxd6 {[%clk 0:00:28.5]} 24. Rd1 {[%clk 0:01:17.2]} 24... Qe7 {[%clk
0:00:20.5]} 25. Bf3 {[%clk 0:01:17.1]} 25... Rc8 {[%clk 0:00:19.6]} 26. Bxc6
{[%clk 0:01:16.8]} 26... Rxc6 {[%clk 0:00:19.7]} 27. Nd5 {[%clk 0:01:17.5]}
27... Qd8 {[%clk 0:00:14.7]} 28. Qc3+ {[%clk 0:01:10]} 28... f6 {[%clk
0:00:12.8]} 29. Ne3 {[%clk 0:01:09.1]} 29... Qb6 {[%clk 0:00:12.9]} 30. Qd4
{[%clk 0:00:35.1]} 30... Kf7 {[%clk 0:00:07.8]} 31. Kf1 {[%clk 0:00:27.2]} 31...
Rc7 {[%clk 0:00:05.3]} 32. Ng4 {[%clk 0:00:24.5]} 32... Nd7 {[%clk 0:00:05.1]}
33. Qxb6 {[%clk 0:00:17.8]} 33... Nxb6 {[%clk 0:00:06]} 34. c3 {[%clk
0:00:17.9]} 34... Nc4 {[%clk 0:00:06]} 35. b3 {[%clk 0:00:14.3]} 35... Nb6
{[%clk 0:00:05.9]} 36. Rd6 {[%clk 0:00:08.7]} 36... Nd5 {[%clk 0:00:06.2]} 37.
Rxa6 {[%clk 0:00:08.3]} 37... Rxc3 {[%clk 0:00:06.6]} 38. Ra7+ {[%clk
0:00:08.2]} 38... Kg8 {[%clk 0:00:06.5]} 39. Kf2 {[%clk 0:00:04.6]} 39... Rc2+
{[%clk 0:00:06]} 40. Kf3 {[%clk 0:00:04.7]} 40... Rc3+ {[%clk 0:00:05.8]} 41.
Kf2 {[%clk 0:00:04.2]} 41... Rc1 {[%clk 0:00:05.8]} 42. Nh6+ {[%clk 0:00:03.8]}
42... Kh8 {[%clk 0:00:05.2]} 43. Nf7+ {[%clk 0:00:04]} 43... Kg8 {[%clk
0:00:05.5]} 44. Nd8 {[%clk 0:00:04.2]} 44... Rc2+ {[%clk 0:00:04.9]} 45. Kf3
{[%clk 0:00:04.9]} 45... Rc3+ {[%clk 0:00:04.8]} 46. Ke4 {[%clk 0:00:04.8]} 1-0

[Event "Early-Titled-Tuesday-Blitz-April-23-2024"]
[Site "Chess.com"]
[Date "2024.04.23"]
[Round "1"]
[White "mishanick"]
[Black "Ural_bogatyr"]
[Result "1-0"]
[WhiteElo "3162"]
[BlackElo "2557"]
[TimeControl "180+1"]
[EndTime "8:07:56 PDT"]
[Termination "mishanick won on time"]

1. d4 {[%clk 0:03:00.1]} 1... Nf6 {[%clk 0:02:59.1]} 2. c4 {[%clk 0:03:00.5]}
2... e6 {[%clk 0:02:59.3]} 3. Nf3 {[%clk 0:02:58.8]} 3... d5 {[%clk 0:02:59.1]}
4. Nc3 {[%clk 0:02:59.5]} 4... c5 {[%clk 0:02:58.7]} 5. cxd5 {[%clk 0:02:59]}
5... cxd4 {[%clk 0:02:58.6]} 6. Qxd4 {[%clk 0:02:58]} 6... exd5 {[%clk
0:02:58.4]} 7. e4 {[%clk 0:02:55.8]} 7... dxe4 {[%clk 0:02:55.1]} 8. Qxd8+
{[%clk 0:02:56.7]} 8... Kxd8 {[%clk 0:02:55.7]} 9. Ng5 {[%clk 0:02:57]} 9... Be6
{[%clk 0:02:55.5]} 10. Nxe6+ {[%clk 0:02:54.6]} 10... fxe6 {[%clk 0:02:55.3]}
11. Bg5 {[%clk 0:02:55.1]} 11... Ke7 {[%clk 0:02:55.3]} 12. Nxe4 {[%clk
0:02:48.9]} 12... Kf7 {[%clk 0:02:55.1]} 13. Nxf6 {[%clk 0:02:43.5]} 13... gxf6
{[%clk 0:02:56]} 14. Bd2 {[%clk 0:02:41.9]} 14... Nc6 {[%clk 0:02:51.4]} 15.
O-O-O {[%clk 0:02:42.6]} 15... Bc5 {[%clk 0:02:39.6]} 16. f3 {[%clk 0:02:41.5]}
16... Rhd8 {[%clk 0:02:39.1]} 17. Bc4 {[%clk 0:02:29]} 17... Nd4 {[%clk
0:02:38.6]} 18. Kb1 {[%clk 0:02:18]} 18... b5 {[%clk 0:02:36.5]} 19. Bf1 {[%clk
0:02:15.3]} 19... a5 {[%clk 0:02:31.8]} 20. Bc1 {[%clk 0:02:08.6]} 20... a4
{[%clk 0:02:26.1]} 21. Bd3 {[%clk 0:02:08]} 21... b4 {[%clk 0:02:11.4]} 22. Rhe1
{[%clk 0:02:06.5]} 22... a3 {[%clk 0:02:02.3]} 23. Bc4 {[%clk 0:02:05]} 23...
Rac8 {[%clk 0:01:38.7]} 24. Be3 {[%clk 0:02:04.3]} 24... Rc6 {[%clk 0:01:33.4]}
25. Rd3 {[%clk 0:01:36.7]} 25... axb2 {[%clk 0:01:22.1]} 26. Kxb2 {[%clk
0:01:15.7]} 26... Bb6 {[%clk 0:01:17.3]} 27. Rc1 {[%clk 0:01:08.1]} 27... Ke7
{[%clk 0:00:57.4]} 28. Rdd1 {[%clk 0:01:01.2]} 28... e5 {[%clk 0:00:43.2]} 29.
Bd3 {[%clk 0:00:59.6]} 29... Rxc1 {[%clk 0:00:33.5]} 30. Rxc1 {[%clk 0:01:00.5]}
30... f5 {[%clk 0:00:26.5]} 31. Bxf5 {[%clk 0:00:53.6]} 31... Nxf5 {[%clk
0:00:15.6]} 32. Bxb6 {[%clk 0:00:51.6]} 32... Rd2+ {[%clk 0:00:16.1]} 33. Rc2
{[%clk 0:00:51.6]} 33... Rxc2+ {[%clk 0:00:16]} 34. Kxc2 {[%clk 0:00:52.5]}
34... Nh4 {[%clk 0:00:15.9]} 35. Bc5+ {[%clk 0:00:47.1]} 35... Ke6 {[%clk
0:00:14.6]} 36. Bxb4 {[%clk 0:00:47.2]} 36... Nxg2 {[%clk 0:00:15.1]} 37. Kd3
{[%clk 0:00:47.9]} 37... Kd5 {[%clk 0:00:12.8]} 38. a4 {[%clk 0:00:43.4]} 38...
Nh4 {[%clk 0:00:13.3]} 39. Ke2 {[%clk 0:00:43.4]} 39... Nf5 {[%clk 0:00:12.5]}
40. a5 {[%clk 0:00:43.4]} 40... Nd4+ {[%clk 0:00:13]} 41. Kf2 {[%clk 0:00:43.8]}
41... Nc6 {[%clk 0:00:11.6]} 42. Bc3 {[%clk 0:00:43.3]} 42... Kc4 {[%clk
0:00:10.6]} 43. Be1 {[%clk 0:00:43.3]} 43... Kd3 {[%clk 0:00:04.7]} 44. Kg3
{[%clk 0:00:39.1]} 44... Ke2 {[%clk 0:00:03.9]} 45. Bc3 {[%clk 0:00:38.1]} 45...
Kd3 {[%clk 0:00:03.8]} 46. Bxe5 {[%clk 0:00:09.5]} 46... Nxe5 {[%clk 0:00:03.3]}
47. f4 {[%clk 0:00:10.3]} 47... Nc6 {[%clk 0:00:02.3]} 48. f5 {[%clk 0:00:11]}
48... Kc4 {[%clk 0:00:01.7]} 49. f6 {[%clk 0:00:11.5]} 49... Nd8 {[%clk
0:00:01.7]} 50. a6 {[%clk 0:00:11.3]} 1-0

[Event "Early-Titled-Tuesday-Blitz-April-23-2024"]
[Site "Chess.com"]
[Date "2024.04.23"]
[Round "1"]
[White "soupeOchoux"]
[Black "Flawless_Fighter"]
[Result "0-1"]
[WhiteElo "2404"]
[BlackElo "2722"]
[TimeControl "180+1"]
[EndTime "8:07:58 PDT"]
[Termination "Flawless_Fighter won by resignation"]

1. d4 {[%clk 0:02:59.4]} 1... Nf6 {[%clk 0:02:55.2]} 2. Bg5 {[%clk 0:02:53.7]}
2... g6 {[%clk 0:02:42]} 3. Bxf6 {[%clk 0:02:50.8]} 3... exf6 {[%clk 0:02:42.9]}
4. e3 {[%clk 0:02:51.3]} 4... d5 {[%clk 0:02:40.3]} 5. c4 {[%clk 0:02:51.6]}
5... c6 {[%clk 0:02:38.6]} 6. cxd5 {[%clk 0:02:50.7]} 6... Qxd5 {[%clk
0:02:34.4]} 7. Nc3 {[%clk 0:02:50.5]} 7... Qd8 {[%clk 0:02:34.2]} 8. g3 {[%clk
0:02:49.4]} 8... f5 {[%clk 0:02:33.8]} 9. Bg2 {[%clk 0:02:49.5]} 9... Be6 {[%clk
0:02:34.6]} 10. Nge2 {[%clk 0:02:49.6]} 10... Bg7 {[%clk 0:02:34.4]} 11. O-O
{[%clk 0:02:47.4]} 11... O-O {[%clk 0:02:34.6]} 12. b4 {[%clk 0:02:47.2]} 12...
Nd7 {[%clk 0:02:31.3]} 13. Qc2 {[%clk 0:02:42.5]} 13... Bc4 {[%clk 0:02:28.6]}
14. Rfc1 {[%clk 0:02:41.1]} 14... Nb6 {[%clk 0:02:27.8]} 15. a4 {[%clk
0:02:29.7]} 15... a5 {[%clk 0:02:25.4]} 16. b5 {[%clk 0:02:26.4]} 16... Rc8
{[%clk 0:02:16.8]} 17. bxc6 {[%clk 0:02:25.7]} 17... bxc6 {[%clk 0:02:17.7]} 18.
Rab1 {[%clk 0:02:14]} 18... c5 {[%clk 0:02:10.4]} 19. d5 {[%clk 0:02:13.7]}
19... Qf6 {[%clk 0:01:52.7]} 20. Rd1 {[%clk 0:02:09]} 20... Rfd8 {[%clk
0:01:51.8]} 21. h4 {[%clk 0:02:05.7]} 21... Rd6 {[%clk 0:01:44.6]} 22. Nb5
{[%clk 0:01:48]} 22... Rd7 {[%clk 0:01:34.9]} 23. Nec3 {[%clk 0:01:31]} 23...
Rcd8 {[%clk 0:01:29.9]} 24. d6 {[%clk 0:01:27.6]} 24... Rc8 {[%clk 0:01:11.4]}
25. Nd5 {[%clk 0:01:19.3]} 25... Bxd5 {[%clk 0:01:10.3]} 26. Bxd5 {[%clk
0:01:20.2]} 26... Bf8 {[%clk 0:00:59.5]} 27. Bc4 {[%clk 0:00:58.1]} 27... Bxd6
{[%clk 0:00:51.6]} 28. Rd3 {[%clk 0:00:58.1]} 28... Bf8 {[%clk 0:00:44.1]} 29.
Rxd7 {[%clk 0:00:56.7]} 29... Nxd7 {[%clk 0:00:45]} 30. Rd1 {[%clk 0:00:52.2]}
30... Ne5 {[%clk 0:00:45.3]} 31. Be2 {[%clk 0:00:50.8]} 31... c4 {[%clk
0:00:45.4]} 32. Rd5 {[%clk 0:00:47.4]} 32... Bb4 {[%clk 0:00:39.9]} 33. f4
{[%clk 0:00:42.5]} 33... Ng4 {[%clk 0:00:37.5]} 34. Bxg4 {[%clk 0:00:42.7]}
34... fxg4 {[%clk 0:00:37.9]} 35. e4 {[%clk 0:00:43.4]} 35... Qb6+ {[%clk
0:00:35.6]} 36. Kg2 {[%clk 0:00:42.5]} 36... Qe3 {[%clk 0:00:33.4]} 37. Rd4
{[%clk 0:00:34.2]} 37... c3 {[%clk 0:00:29.6]} 38. e5 {[%clk 0:00:32.2]} 38...
Kg7 {[%clk 0:00:27.1]} 39. Kh2 {[%clk 0:00:28.5]} 39... Rc5 {[%clk 0:00:25.4]}
40. Rd1 {[%clk 0:00:21.7]} 40... h5 {[%clk 0:00:25.6]} 41. Nd6 {[%clk
0:00:19.7]} 41... Qf3 {[%clk 0:00:18.9]} 42. Ne8+ {[%clk 0:00:19]} 42... Kf8
{[%clk 0:00:18.9]} 43. Nf6 {[%clk 0:00:19]} 43... Rc8 {[%clk 0:00:18.3]} 44. Rd7
{[%clk 0:00:18.1]} 44... Qc6 {[%clk 0:00:13.1]} 45. Qd3 {[%clk 0:00:15.3]} 45...
Be7 {[%clk 0:00:06.2]} 46. Qc2 {[%clk 0:00:12.7]} 46... Qc4 {[%clk 0:00:04.3]}
47. Rd3 {[%clk 0:00:10.8]} 47... Qc6 {[%clk 0:00:04.5]} 48. Rd7 {[%clk
0:00:07.8]} 48... Bxf6 {[%clk 0:00:04.8]} 49. exf6 {[%clk 0:00:07.3]} 49... Qxd7
{[%clk 0:00:05.1]} 0-1

[Event "Early-Titled-Tuesday-Blitz-April-23-2024"]
[Site "Chess.com"]
[Date "2024.04.23"]
[Round "1"]
[White "Aleksandar-Topalov"]
[Black "GelmanAlexander"]
[Result "1-0"]
[WhiteElo "2378"]
[BlackElo "2653"]
[TimeControl "180+1"]
[EndTime "8:07:59 PDT"]
[Termination "Aleksandar-Topalov won by resignation"]

1. b3 {[%clk 0:02:59.4]} 1... c5 {[%clk 0:02:57.8]} 2. Bb2 {[%clk 0:02:58.6]}
2... e6 {[%clk 0:02:53.1]} 3. Nf3 {[%clk 0:02:58]} 3... Nf6 {[%clk 0:02:47.7]}
4. e3 {[%clk 0:02:57.9]} 4... d6 {[%clk 0:02:44.9]} 5. d4 {[%clk 0:02:52.8]}
5... Nbd7 {[%clk 0:02:45.3]} 6. Nbd2 {[%clk 0:02:52.1]} 6... a6 {[%clk
0:02:42.1]} 7. Bd3 {[%clk 0:02:44.1]} 7... b6 {[%clk 0:02:42.2]} 8. O-O {[%clk
0:02:43.4]} 8... Bb7 {[%clk 0:02:39.9]} 9. a4 {[%clk 0:02:41.1]} 9... Qc7 {[%clk
0:02:32.7]} 10. Qe2 {[%clk 0:02:37.3]} 10... Be7 {[%clk 0:02:32.8]} 11. c4
{[%clk 0:02:23.7]} 11... Rg8 {[%clk 0:02:28.6]} 12. Rfd1 {[%clk 0:02:15]} 12...
g5 {[%clk 0:02:24.2]} 13. dxc5 {[%clk 0:01:53.1]} 13... bxc5 {[%clk 0:02:22.4]}
14. Bc3 {[%clk 0:01:47.7]} 14... g4 {[%clk 0:02:21]} 15. Ne1 {[%clk 0:01:47.5]}
15... h5 {[%clk 0:02:21.2]} 16. b4 {[%clk 0:01:21.3]} 16... cxb4 {[%clk
0:02:11.5]} 17. Bxb4 {[%clk 0:01:20.6]} 17... h4 {[%clk 0:02:11.6]} 18. Rab1
{[%clk 0:01:08.8]} 18... Rc8 {[%clk 0:01:59.6]} 19. Bc2 {[%clk 0:00:49.3]} 19...
Ba8 {[%clk 0:01:36.5]} 20. e4 {[%clk 0:00:40.5]} 20... Nc5 {[%clk 0:01:26]} 21.
Bxc5 {[%clk 0:00:36.1]} 21... dxc5 {[%clk 0:01:16.7]} 22. e5 {[%clk 0:00:30.2]}
22... Qc6 {[%clk 0:01:13.3]} 23. exf6 {[%clk 0:00:25.4]} 23... Bxf6 {[%clk
0:01:10.6]} 24. Be4 {[%clk 0:00:25.3]} 24... Qc7 {[%clk 0:01:10.4]} 25. Bxa8
{[%clk 0:00:24.6]} 25... Rxa8 {[%clk 0:01:11.3]} 26. Ne4 {[%clk 0:00:23.9]}
26... Bd4 {[%clk 0:01:11.2]} 27. Rxd4 {[%clk 0:00:22.6]} 27... cxd4 {[%clk
0:01:11.3]} 28. Nf6+ {[%clk 0:00:22.8]} 28... Ke7 {[%clk 0:01:10.8]} 29. Nxg8+
{[%clk 0:00:22.9]} 29... Rxg8 {[%clk 0:01:11.7]} 30. Nd3 {[%clk 0:00:21.3]}
30... Qxc4 {[%clk 0:01:11.2]} 31. Rb7+ {[%clk 0:00:20.5]} 31... Kf8 {[%clk
0:01:03.8]} 32. g3 {[%clk 0:00:17.4]} 32... h3 {[%clk 0:01:02]} 33. Qe4 {[%clk
0:00:13.7]} 33... Rg5 {[%clk 0:00:58.3]} 34. Qh7 {[%clk 0:00:11.6]} 34... Rg7
{[%clk 0:00:21.3]} 35. Rxf7+ {[%clk 0:00:11.1]} 35... Rxf7 {[%clk 0:00:18.8]}
36. Qxf7+ {[%clk 0:00:10.9]} 36... Kxf7 {[%clk 0:00:19]} 37. Ne5+ {[%clk
0:00:11.2]} 37... Kf6 {[%clk 0:00:19]} 38. Nxc4 {[%clk 0:00:11.2]} 38... Kf5
{[%clk 0:00:19.9]} 39. Kf1 {[%clk 0:00:10.9]} 39... Ke4 {[%clk 0:00:20.5]} 40.
Ke2 {[%clk 0:00:11]} 40... Kd5 {[%clk 0:00:18]} 41. Kd3 {[%clk 0:00:10.7]} 41...
e5 {[%clk 0:00:18.2]} 42. Nd2 {[%clk 0:00:11]} 42... a5 {[%clk 0:00:18]} 43. Ne4
{[%clk 0:00:10.9]} 43... Ke6 {[%clk 0:00:16.7]} 44. Nc5+ {[%clk 0:00:10.3]}
44... Kd5 {[%clk 0:00:17]} 45. Ne4 {[%clk 0:00:08.8]} 45... Ke6 {[%clk
0:00:17.1]} 46. f3 {[%clk 0:00:08.2]} 46... gxf3 {[%clk 0:00:16.8]} 47. Nf2
{[%clk 0:00:08.1]} 47... Kd5 {[%clk 0:00:17.1]} 48. g4 {[%clk 0:00:08.4]} 48...
Ke6 {[%clk 0:00:12.6]} 49. Ke4 {[%clk 0:00:07.9]} 49... Kf6 {[%clk 0:00:13.1]}
50. Nxh3 {[%clk 0:00:07.8]} 50... Ke6 {[%clk 0:00:09.2]} 51. Kxf3 {[%clk
0:00:07.4]} 51... Kd5 {[%clk 0:00:09.3]} 52. Nf2 {[%clk 0:00:07.4]} 52... Kc4
{[%clk 0:00:09.9]} 53. Ne4 {[%clk 0:00:07.1]} 53... Kb4 {[%clk 0:00:09]} 54. g5
{[%clk 0:00:07.6]} 54... Kxa4 {[%clk 0:00:09.7]} 55. g6 {[%clk 0:00:08.2]} 55...
Kb3 {[%clk 0:00:10.6]} 56. g7 {[%clk 0:00:08.7]} 56... a4 {[%clk 0:00:11.5]} 57.
g8=Q+ {[%clk 0:00:09.1]} 1-0

[Event "Early-Titled-Tuesday-Blitz-April-23-2024"]
[Site "Chess.com"]
[Date "2024.04.23"]
[Round "1"]
[White "snowlord"]
[Black "kecalk"]
[Result "1-0"]
[WhiteElo "2919"]
[BlackElo "2520"]
[TimeControl "180+1"]
[EndTime "8:08:00 PDT"]
[Termination "snowlord won on time"]

1. Nf3 {[%clk 0:03:00]} 1... d5 {[%clk 0:02:58.9]} 2. c4 {[%clk 0:02:58.8]} 2...
d4 {[%clk 0:02:58.7]} 3. b4 {[%clk 0:02:57.7]} 3... f6 {[%clk 0:02:57.9]} 4. e3
{[%clk 0:02:56.4]} 4... e5 {[%clk 0:02:57.9]} 5. c5 {[%clk 0:02:55.8]} 5... a5
{[%clk 0:02:52.1]} 6. Qa4+ {[%clk 0:02:54]} 6... Bd7 {[%clk 0:02:46]} 7. b5
{[%clk 0:02:53.3]} 7... Bxc5 {[%clk 0:02:40.9]} 8. Bc4 {[%clk 0:02:50.3]} 8...
Ne7 {[%clk 0:02:37.6]} 9. exd4 {[%clk 0:02:46.7]} 9... exd4 {[%clk 0:02:33.5]}
10. d3 {[%clk 0:02:47]} 10... Bg4 {[%clk 0:02:26]} 11. Nbd2 {[%clk 0:02:45.1]}
11... Nd7 {[%clk 0:02:25.2]} 12. O-O {[%clk 0:02:41.4]} 12... Nb6 {[%clk
0:02:23.4]} 13. Qc2 {[%clk 0:02:37.8]} 13... Nxc4 {[%clk 0:02:21.2]} 14. Qxc4
{[%clk 0:02:38.7]} 14... Qd5 {[%clk 0:02:21]} 15. Qxd5 {[%clk 0:02:15.6]} 15...
Nxd5 {[%clk 0:02:20.4]} 16. Ne4 {[%clk 0:02:16.3]} 16... Bb6 {[%clk 0:02:13]}
17. Nfd2 {[%clk 0:02:14.2]} 17... Kf7 {[%clk 0:02:06.8]} 18. Re1 {[%clk
0:02:12.2]} 18... Rhe8 {[%clk 0:01:34.1]} 19. Nc4 {[%clk 0:02:07.2]} 19... Kg6
{[%clk 0:01:12.5]} 20. f3 {[%clk 0:01:52.2]} 20... Bd7 {[%clk 0:01:10]} 21. Bb2
{[%clk 0:01:29.9]} 21... Bxb5 {[%clk 0:01:06.3]} 22. Nxb6 {[%clk 0:01:30.4]}
22... Nxb6 {[%clk 0:00:59.7]} 23. Nc5 {[%clk 0:01:29.8]} 23... Nd7 {[%clk
0:00:52.4]} 24. Ne6 {[%clk 0:01:25.2]} 24... c5 {[%clk 0:00:44.4]} 25. Nc7
{[%clk 0:01:20.4]} 25... Rxe1+ {[%clk 0:00:44]} 26. Rxe1 {[%clk 0:01:21.3]}
26... Rc8 {[%clk 0:00:44.5]} 27. Nxb5 {[%clk 0:01:21.2]} 27... Ne5 {[%clk
0:00:45.4]} 28. Rd1 {[%clk 0:01:19.1]} 28... b6 {[%clk 0:00:20.9]} 29. h3 {[%clk
0:01:15.3]} 29... h5 {[%clk 0:00:20]} 30. f4 {[%clk 0:01:15]} 30... Nc6 {[%clk
0:00:20.8]} 31. a3 {[%clk 0:01:09.4]} 31... Ne7 {[%clk 0:00:20.8]} 32. Re1
{[%clk 0:01:02.2]} 32... Nd5 {[%clk 0:00:20.8]} 33. f5+ {[%clk 0:01:02.9]} 33...
Kg5 {[%clk 0:00:20.6]} 34. Bc1+ {[%clk 0:01:02.6]} 34... Ne3 {[%clk 0:00:11.1]}
35. Bxe3+ {[%clk 0:00:52.2]} 35... dxe3 {[%clk 0:00:12]} 36. Rxe3 {[%clk
0:00:53.1]} 36... Rd8 {[%clk 0:00:12.5]} 37. Rf3 {[%clk 0:00:48.6]} 37... h4
{[%clk 0:00:12.6]} 38. Kf2 {[%clk 0:00:47.9]} 38... Rd5 {[%clk 0:00:11.9]} 39.
Nc3 {[%clk 0:00:36.8]} 39... Rxf5 {[%clk 0:00:09.4]} 40. Ne4+ {[%clk 0:00:37.2]}
40... Kg6 {[%clk 0:00:09.6]} 41. Rxf5 {[%clk 0:00:38.1]} 41... Kxf5 {[%clk
0:00:10.5]} 42. Nd6+ {[%clk 0:00:39]} 42... Ke5 {[%clk 0:00:09.5]} 43. Nc4+
{[%clk 0:00:39.9]} 43... Kd4 {[%clk 0:00:09.8]} 44. Ke2 {[%clk 0:00:39.2]} 44...
b5 {[%clk 0:00:04.2]} 45. Nxa5 {[%clk 0:00:39.3]} 45... Kc3 {[%clk 0:00:05.1]}
46. Nb7 {[%clk 0:00:24.1]} 46... b4 {[%clk 0:00:04.7]} 47. axb4 {[%clk
0:00:17.2]} 47... cxb4 {[%clk 0:00:05.6]} 48. Nc5 {[%clk 0:00:16.5]} 48... b3
{[%clk 0:00:05.8]} 49. Ke3 {[%clk 0:00:16]} 49... Kb4 {[%clk 0:00:03.2]} 50. d4
{[%clk 0:00:16.6]} 50... b2 {[%clk 0:00:02.9]} 51. Nd3+ {[%clk 0:00:17.2]} 51...
Kc3 {[%clk 0:00:03.1]} 52. Nxb2 {[%clk 0:00:18.1]} 52... Kxb2 {[%clk 0:00:03.1]}
53. d5 {[%clk 0:00:18.6]} 1-0